Cogmind - Beta 16.1 @@@ ROGUE MODE // 2026.02.20 @ 14:28:19 Player: Florist Result: Self-destructed Performance ------------- Evolutions (6) 3000 Regions Visited (21) 4200 Robots Destroyed (215) 1075 Value Destroyed (8324) 8324 Prototype IDs (36) 720 Alien Tech Used (0) 0 Bonus (5007) 5007 TOTAL SCORE: 22326 Bonus ------- High Alert Combat Kills 251 Follower Combat Kills 657 Entered Garrisons 1000 Used RIF Installer 3000 Aligned with FarCom 300 Friendly Fire -201 Cogmind --------- Core Integrity 1033/1150 Matter 254/300 Energy 170/170 System Corruption 4% Temperature Cool (0) Movement Walking (120) Location -4/Factory Parts ------- > --- POWER (1) -------- Light Antimatter Reactor > --- PROPULSION (7) --- Enhanced Flexi-carbon Leg Enhanced Flexi-carbon Leg Myomer Leg Centrium Wheel Centrium Wheel Cooled Field Propulsion Drive Cooled Field Propulsion Drive > --- UTILITY (9) ------ Advanced Cryofiber Web Improved Heat Sink Advanced Targeting Computer Improved Target Analyzer Improved Target Analyzer Transmission Jammer Improved System Shield Relay Coupler [NC] (28) > --- WEAPON (2) ------- Improved Remote Datajack > --- INVENTORY (5) ---- Advanced Heat Sink Cloak of Protection Hardened Heavy Armor Plating Improved Remote Datajack Peak State ------------ > --- POWER ------------ Light Antimatter Reactor > --- PROPULSION ------- Enhanced Flexi-carbon Leg Enhanced Flexi-carbon Leg Myomer Leg Centrium Wheel Centrium Wheel Cooled Field Propulsion Drive Cooled Field Propulsion Drive > --- UTILITY ---------- Advanced Cryofiber Web Advanced Cooling System Advanced Targeting Computer Improved Target Analyzer Improved Target Analyzer Transmission Jammer Improved Medium Armor Plating Improved System Shield Relay Coupler [NC] > --- WEAPON ----------- Heavy Gauss Cannon Improved Remote Datajack > --- INVENTORY -------- Advanced Heat Sink Cloak of Protection Hardened Heavy Armor Plating Improved Remote Datajack [Rating: 113] Favorites ----------- Power Reinforced Ion Engine Engine Reinforced Ion Engine Power Core Light Fission Core Reactor Light Antimatter Reactor Propulsion Improved Treads Treads Improved Treads Leg Enhanced Flexi-carbon Leg Wheel Centrium Wheel Hover Unit Cooled Aerolev Unit Flight Unit Xenon Bombardment Thruster Utility Cooling System Device Cooling System Storage High-capacity Storage Unit Processor Visual Processing Unit Hackware Hacking Suite Protection Medium Armor Plating Weapon Spread Laser Energy Gun Spread Laser Energy Cannon Advanced Plasma Cannon Ballistic Gun Shotgun Ballistic Cannon Heavy Gauss Cannon Launcher Improved Grenade Launcher Special Weapon Remote Datajack Slashing Weapon Power Sword Special Melee Weapon Improved Datajack Build | -11 -10 -10 -9 -9 -9 -8 -8 -8 -8 -8 -7 -7 -7 -7 -6 -6 -5 -5 -5 -5 -4 ------- Run | Yrd Mat Min Mat Min Exi Min Mat Gar Mat Gar Fac Was Fac Gar Fac Gar Fac Was Fac Gar Fac Slots Evolved 12 | . . . 2 . . . 2 . . . 2 . . . 2 . 2 . . . 2 Power . | . . . . . . . . . . . . . . . . . . . . . . Propulsion 5 | . . . 1 . . . 1 . . . 1 . . . 1 . 1 . . . . Utility 7 | . . . 1 . . . 1 . . . 1 . . . 1 . 1 . . . 2 Weapon . | . . . . . . . . . . . . . . . . . . . . . . Parts Attached 167 | 8 9 3 23 2 . . 7 6 15 2 10 . 5 6 9 21 11 . 9 4 17 Power 13 | 1 1 . 1 . . . . 1 . 1 . . . 1 1 1 2 . 1 . 2 Engine 6 | 1 1 . 1 . . . . . . 1 . . . . . . 1 . 1 . . Core 5 | . . . . . . . . 1 . . . . . 1 1 1 1 . . . . Reactor 2 | . . . . . . . . . . . . . . . . . . . . . 2 Propulsion 43 | 2 1 . 10 . . . 2 . 7 . 2 . 2 2 2 3 3 . . . 7 Treads 16 | 2 1 . 8 . . . 2 . 3 . . . . . . . . . . . . Leg 3 | . . . . . . . . . . . . . . . . . . . . . 3 Wheel 2 | . . . . . . . . . . . . . . . . . . . . . 2 Hover 4 | . . . 1 . . . . . . . . . . . . . 3 . . . . Flight 18 | . . . 1 . . . . . 4 . 2 . 2 2 2 3 . . . . 2 Utility 74 | 3 3 1 7 . . . 2 2 6 1 7 . 2 3 6 13 5 . 5 3 5 Device 28 | 2 2 1 3 . . . . 1 2 . 3 . 2 1 2 2 1 . 3 1 2 Storage 6 | 1 1 . 1 . . . . . 1 . . . . . 2 . . . . . . Processor 10 | . . . 1 . . . . . 1 . 2 . . . 2 . 1 . 1 . 2 Hackware 22 | . . . . . . . . . 2 1 2 . . 2 . 10 2 . 1 2 . Protection 8 | . . . 2 . . . 2 1 . . . . . . . 1 1 . . . 1 Artifact . | . . . . . . . . . . . . . . . . . . . . . . Weapon 37 | 2 4 2 5 2 . . 3 3 2 . 1 . 1 . . 4 1 . 3 1 3 Energy Gun 13 | 2 2 . 4 . . . 1 2 1 . . . . . . . 1 . . . . Energy Cannon 2 | . . . . . . . . . . . . . . . . . . . 1 1 . Ballistic Gun 5 | . 2 . 1 . . . 1 . . . . . . . . . . . . . 1 Ballistic Cannon 1 | . . . . . . . . . . . . . . . . . . . . . 1 Launcher 5 | . . 2 . 2 . . . . . . . . 1 . . . . . . . . Special Weapon 4 | . . . . . . . . . . . 1 . . . . 1 . . 1 . 1 Impact Weapon . | . . . . . . . . . . . . . . . . . . . . . . Slashing Weapon 4 | . . . . . . . 1 1 . . . . . . . 2 . . . . . Piercing Weapon . | . . . . . . . . . . . . . . . . . . . . . . Special Melee Weapon 3 | . . . . . . . . . 1 . . . . . . 1 . . 1 . . Unidentified Prototypes 10 | . . 1 3 . . . 1 . . . 1 . 2 . . . 1 . 1 . . Parts Lost 38 | . 1 . 2 . . . 1 1 1 . . . . 3 1 20 . . . 4 4 Power 3 | . . . . . . . . . . . . . . 1 . 1 . . . 1 . Propulsion 14 | . . . 1 . . . . . . . . . . 1 1 9 . . . . 2 Utility 11 | . 1 . 1 . . . . 1 1 . . . . . . 5 . . . 1 1 Weapon 10 | . . . . . . . 1 . . . . . . 1 . 5 . . . 2 1 Highest Loss Streak 19 | . 1 . 1 . . . 1 1 1 . . . . 3 1 19 . . . 4 2 To Critical Strikes 1 | . . . . . . . . . . . . . . . . 1 . . . . . Average Backups 11 | 2 12 14 14 15 16 15 18 18 15 6 7 8 8 8 8 7 3 4 4 4 4 Power 1 | . 1 1 1 1 1 1 1 2 1 . 1 1 1 . 1 . . 1 1 . . Propulsion 1 | 1 2 2 1 1 1 1 1 1 . 2 3 4 3 1 . . . . 1 1 . Utility 4 | . 2 4 4 5 4 5 6 7 8 3 2 3 3 4 6 6 3 3 1 1 2 Weapon 4 | . 5 7 7 8 9 8 7 6 4 . . . . 1 . 1 . . . . . Tool/Special . | . . . . . . . . . . . . . . . . . . . . . . Unused Backups 31 | . 4 1 10 . 1 . . . 5 . . . 2 . . 5 . . . . 3 Power 3 | . . . 1 . . . . . 2 . . . . . . . . . . . . Propulsion 7 | . . . 4 . . . . . . . . . 2 . . . . . . . 1 Utility 9 | . 1 . . . 1 . . . 2 . . . . . . 3 . . . . 2 Weapon 10 | . 3 1 5 . . . . . 1 . . . . . . . . . . . . Tool/Special 2 | . . . . . . . . . . . . . . . . 2 . . . . . Average Slot Usage (%) 93 | . 99 100 97 100 77 99 91 99 93 98 98 100 98 98 85 91 28 58 70 70 89 Engine 7 | . 14 14 11 11 11 11 9 8 . 2 7 7 7 1 2 3 . 5 5 1 . Core 1 | . . . . . . . . . 9 6 . . . 5 3 1 . . . 3 . Treads 19 | . 28 28 32 33 33 33 35 36 25 . . . . . . . . . . . . Hover 1 | . . . . . . . . . . . . . . . . . 3 17 17 16 4 Flight 9 | . . . . . . . . . 10 36 38 38 38 37 39 37 . . . . 6 Device 9 | . 13 14 11 11 11 11 9 8 6 . 2 . 4 2 6 6 3 5 5 10 14 Storage 8 | . 14 14 11 11 11 11 9 9 7 9 6 7 6 7 6 5 . . . . . Processor 4 | . . . . . . . . . 2 9 9 15 15 15 13 12 4 5 7 5 12 Hackware 4 | . . . . . . . . . 4 16 18 15 9 11 6 10 10 11 16 13 11 Protection 5 | . . . 9 11 11 11 10 18 8 . . . . . . . 1 5 5 4 2 Energy Gun 9 | . 12 23 21 8 . 19 17 14 11 . . . . . . . 1 5 1 . . Ballistic Gun 2 | . 15 . . . . . . . . . . . . . . . . . . . . Launcher 1 | . . 4 . 13 . 2 . . . . . . . . . . . . . . . Special Weapon 1 | . . . . . . . . . . . 6 7 7 5 . 3 . . 2 1 3 Slashing Weapon 1 | . . . . . . . . 3 3 9 7 7 7 7 6 5 . . . . . Peak Build Rating 113 | 7 11 15 23 23 20 23 30 37 46 44 53 49 54 54 59 69 45 46 64 66 113 Average Rating 33 | 5 9 10 18 22 17 21 26 30 34 41 49 49 50 51 53 59 23 45 56 60 99 On Entrance 32 | . 7 9 12 21 21 18 21 30 37 41 39 49 49 54 48 57 2 45 46 57 43 Avg Prop Armor Cover (%) 8 | . 10 . . . . . . . 4 . . . . . 5 8 . . . 1 11 Naked Turns 32 | . . . . . . . . . . . . . . . . 32 . . . . . Heaviest Build 79 | 14 32 34 65 71 59 71 73 79 69 23 26 25 26 26 23 29 14 14 29 40 39 Greatest Support 89 | 40 40 40 69 69 69 69 89 86 86 24 30 30 31 32 36 32 29 29 29 29 81 Greatest Overweight (x) 2 | . 1 . 1 1 . 1 . . 2 . 1 . . . . 1 . . . 1 2 Average Overweight (x) . | . . . . . . . . . . . . . . . . . . . . . . Largest Inventory Capacity 20 | 8 15 15 20 20 20 20 20 20 20 10 10 10 10 10 10 10 5 5 5 5 5 Average Capacity 13 | 7 14 15 16 20 20 20 20 20 16 10 9 10 9 10 10 9 5 5 5 5 5 Most Carried 20 | 5 15 15 17 16 18 17 20 20 20 9 10 9 10 10 10 10 5 5 5 5 5 Average Carried 12 | 2 12 14 14 15 17 16 19 19 16 7 8 9 9 9 9 8 3 4 4 4 4 Final Capacity 20 | 8 15 15 20 20 20 20 20 20 10 10 10 10 10 10 10 5 5 5 5 5 5 Final Carried 20 | 5 13 15 15 16 18 16 20 20 7 9 9 9 10 10 10 5 4 5 5 5 5 Class Distribution -------------------- 73% | Mutant 9% | Ninja 5% | Scout 5% | Sprinter 3% | Scavenger-Mutant Dominant Class ---------------- Mutant | -10/Materials Mutant | -10/Mines Mutant | -9/Materials Mutant | -9/Mines Mutant | -9/Exiles Mutant | -8/Mines Mutant | -8/Materials Mutant | -8/Garrison Mutant | -8/Materials Sprinter | -8/Garrison Hacker-Sprinter | -7/Factory Scout | -7/Waste Ninja | -7/Factory Scout | -7/Garrison Ninja | -6/Factory Ninja | -6/Garrison Mutant | -5/Factory Mutant | -5/Waste Mutant | -5/Factory Mutant | -5/Garrison Mutant | -4/Factory Resources | -11 -10 -10 -9 -9 -9 -8 -8 -8 -8 -8 -7 -7 -7 -7 -6 -6 -5 -5 -5 -5 -4 ----------- Run | Yrd Mat Min Mat Min Exi Min Mat Gar Mat Gar Fac Was Fac Gar Fac Gar Fac Was Fac Gar Fac Matter Collected 4895 | 280 401 158 487 129 . 129 152 319 434 49 218 . 153 173 53 674 67 . 179 276 564 Remotely 10 | 10 . . . . . . . . . . . . . . . . . . . . . Salvage Created 6973 | 135 943 297 1122 42 . 87 307 329 526 91 499 . 179 139 213 397 17 . 207 492 951 Parts 413 | 10 50 21 72 6 . 8 34 24 29 3 27 . 11 4 20 27 1 . 3 15 48 Haulers Intercepted 16 | . 2 . 5 . . . . . 3 . 1 . 1 . . . . . 2 . 2 Recyclers Shooed 11 | 1 2 . 3 . . . . . 1 . 1 . 1 . 1 . . . 1 . . Parts Field Recycled . | . . . . . . . . . . . . . . . . . . . . . . Retrieved Matter . | . . . . . . . . . . . . . . . . . . . . . . Parts Self-Destructed . | . . . . . . . . . . . . . . . . . . . . . . Prevented . | . . . . . . . . . . . . . . . . . . . . . . Parts Restored . | . . . . . . . . . . . . . . . . . . . . . . Kills | -11 -10 -10 -9 -9 -9 -8 -8 -8 -8 -8 -7 -7 -7 -7 -6 -6 -5 -5 -5 -5 -4 ------- Run | Yrd Mat Min Mat Min Exi Min Mat Gar Mat Gar Fac Was Fac Gar Fac Gar Fac Was Fac Gar Fac Combat Hostiles Destroyed 131 | . 16 10 22 4 . 6 9 17 12 1 2 . . 3 1 8 . . . 7 13 Melee 10 | . . . . . . . . . 2 1 2 . . 3 . 2 . . . . . Guns 64 | . 16 4 18 1 . 2 6 9 8 . . . . . . . . . . . . Cannons 16 | . . . . . . . . . . . . . . . . . . . . 5 11 AOE 38 | . . 6 3 3 . 4 3 8 2 . . . . . 1 6 . . . . 2 Classes Destroyed 18 | 2 6 . 3 . . . 2 1 2 1 . . . . . . . . . 1 . Worker 17 | . 3 . 5 . . 1 1 . 1 . 1 . . . 2 . 1 . . . 2 Builder 8 | . . . . . . . 2 . . . 1 . 1 . 3 . . . . . 1 Tunneler 3 | 2 . 1 . . . . . . . . . . . . . . . . . . . Hauler 16 | . 2 . 5 . . . . . 3 . 1 . 1 . . . . . 2 . 2 Recycler 11 | 1 2 1 1 . . . . . 1 . 1 . . . 1 . . . . . 3 Mechanic 4 | . . . 1 . . . . . . . 2 . . . . 1 . . . . . Operator 6 | . 1 . 2 . . . . . . . 1 . . . . 1 . . . . 1 Watcher 18 | . 3 . 1 . . . 3 . 2 1 4 . 1 . 1 . . . 1 . 1 Swarmer 33 | . 2 6 4 3 . 3 3 8 . . . . . 1 . 3 . . . . . Cutter 2 | . . . . . . . . . 2 . . . . . . . . . . . . Grunt 53 | . 14 4 12 . . 2 3 3 5 . . . . 1 . 2 . . . 4 3 Brawler 5 | . . . 2 . . 1 . . . . . . . . . . . . . 1 1 Duelist 1 | . . . . . . . . . 1 . . . . . . . . . . . . Sentry 14 | . . . 4 . . . 1 2 4 . . . . 1 . 1 . . . 1 . Specialist 6 | . . . . . . . 2 1 . . . . . . . 2 . . . . 1 Hunter 4 | . . . . . . . . . . 1 1 . . . . . . . . . 2 Programmer 11 | . . . . . . . . 3 . . 1 . . . 1 . . . . . 6 Behemoth 1 | . . . . . . . . . . . . . . . . . . . . 1 . Thug 1 | . . . . 1 . . . . . . . . . . . . . . . . . Best Kill Streak 7 | 2 3 3 4 3 . 4 3 4 4 2 2 . 1 1 7 4 1 . 1 2 5 Combat Bots Only 4 | . 3 3 3 3 . 4 3 4 3 1 2 . . 1 1 3 . . . 2 3 Max Kills in Single Turn 3 | 1 1 3 2 3 . 2 2 3 2 1 1 . 1 1 1 2 1 . 1 1 3 Gunslinging . | . . . . . . . . . . . . . . . . . . . . . . Exploded 3 | . . 2 2 3 . 2 2 3 2 . . . . . 1 2 . . . . 1 Melee 1 | . . . . . . . . . 1 1 1 . . 1 . 1 . . . . . Uniques/NPCs Destroyed 1 | . . . . 1 . . . . . . . . . . . . . . . . . YI-UF0 (-9/Mines) Combat | -11 -10 -10 -9 -9 -9 -8 -8 -8 -8 -8 -7 -7 -7 -7 -6 -6 -5 -5 -5 -5 -4 -------- Run | Yrd Mat Min Mat Min Exi Min Mat Gar Mat Gar Fac Was Fac Gar Fac Gar Fac Was Fac Gar Fac Hostile Shots Fired 789 | . 81 32 76 1 . 8 39 52 51 2 11 . 1 77 11 175 . . . 72 100 Missed 270 | . 17 12 24 . . 1 12 14 11 2 8 . 1 32 4 70 . . . 19 43 Hits 519 | . 64 20 52 1 . 7 27 38 40 . 3 . . 45 7 105 . . . 53 57 Melee 10 | . . . 2 . . . . . 4 . . . . . . 4 . . . . . Projectile 509 | . 64 20 50 1 . 7 27 38 36 . 3 . . 45 7 101 . . . 53 57 AOE 1 | . . . . . . . . . 1 . . . . . . . . . . . . Critical Strikes 17 | . . . 3 . . . . . 4 . . . . . . 3 . . . 3 4 Damage Taken 7642 | . 694 275 577 6 . 123 551 475 695 . 16 . 30 324 106 1945 2 . . 867 956 Core 1594 | . 151 59 108 . . 8 57 7 72 . 5 . . 85 32 704 . . . 189 117 Absorbed by Shields 250 | . . . . . . . . . . . . . . 41 . 22 . . . 187 . Redirected to Shielding 28 | . . . 28 . . . . . . . . . . . . . . . . . . Regen/Repaired (Parts) 156 | . 143 . . . . . . . . . . . . . 13 . . . . . . Core Remaining (%) 63 | 100 . 16 . . . 71 . . . 75 . . . 87 . 13 . . . 81 . Volleys Fired 494 | 5 73 19 96 5 . 10 27 30 33 . 10 . 5 16 7 40 1 . 29 28 60 Largest 2 | 2 2 2 2 2 . 2 2 2 2 . 1 . 1 1 1 1 1 . 1 2 1 Hottest 196 | 90 100 100 130 130 . 130 130 130 130 . 5 . 39 5 39 39 81 . 98 196 51 Shots Fired 782 | 10 145 35 179 11 . 14 51 61 66 . 10 . 5 16 7 40 1 1 29 41 60 Gun 550 | 10 145 29 175 9 . 10 48 51 62 . . . . . . . 1 1 9 . . Cannon 101 | . . . . . . . . . . . . . . . . . . . 7 39 55 Launcher 48 | . . 6 4 2 . 4 3 10 4 . . . 1 . 7 7 . . . . . Special 83 | . . . . . . . . . . . 10 . 4 16 . 33 . . 13 2 5 Kinetic 130 | . 75 . . . . . . . . . . . . . . . . . . . 55 Thermal 521 | 10 70 29 175 9 . 10 48 51 62 . . . . . . . 1 1 16 39 . Explosive 48 | . . 6 4 2 . 4 3 10 4 . . . 1 . 7 7 . . . . . Electromagnetic . | . . . . . . . . . . . . . . . . . . . . . . Robot Hit Streak 33 | 3 11 5 15 9 . 5 21 33 31 . 5 . 2 11 . 10 2 . 9 7 13 Robot Miss Streak 14 | 1 13 2 6 3 . 14 7 4 6 . 1 . 2 2 . 2 . 1 2 1 2 Penetration Max . | . . . . . . . . . . . . . . . . . . . . . . Secondary Targets 8 | . 5 1 2 . . . . . . . . . . . . . . . . . . Max Gunslinging Chain 1 | . 1 1 1 . . . . . . . . . . . . . . . . . . Shots Hit Robots 633 | 5 99 17 136 8 . 6 40 36 64 6 37 . 13 17 2 52 1 . 26 28 40 Core Hits 510 | 4 52 16 112 15 . 15 64 65 88 2 6 . 3 2 10 9 1 . 4 11 31 Critical Kills 2 | . . . . . . . . . . . . . . . . . . . . 2 . Critical Parts Destroyed 2 | . 2 . . . . . . . . . . . . . . . . . . . . Critical Strikes 25 | . 4 1 5 . . . . . . . 1 . 1 1 . 2 . . . 2 8 Burn 8 | . 2 1 5 . . . . . . . . . . . . . . . . . . Meltdown 2 | . . . . . . . . . . . . . . . . . . . . 2 . Destroy 2 | . 2 . . . . . . . . . . . . . . . . . . . . Blast 8 | . . . . . . . . . . . . . . . . . . . . . 8 Sever 5 | . . . . . . . . . . . 1 . 1 1 . 2 . . . . . Melee Attacks 221 | . . . . . . . 5 12 11 29 55 . 21 25 16 40 . . 7 . . Thermal 2 | . . . . . . . . . . . . . . . . 2 . . . . . Impact . | . . . . . . . . . . . . . . . . . . . . . . Slashing 195 | . . . . . . . 5 12 11 22 55 . 21 25 16 28 . . . . . Piercing . | . . . . . . . . . . . . . . . . . . . . . . Sneak Attacks 26 | . . . . . . . . . 1 . 8 . 3 4 1 3 . . 6 . . Combat Hostiles 1 | . . . . . . . . . . . . . . . . 1 . . . . . Follow-up Attacks . | . . . . . . . . . . . . . . . . . . . . . . Damage Inflicted 17363 | 57 1297 571 2010 341 . 576 835 1193 1416 173 1747 . 834 317 671 1405 29 . 282 852 2757 Guns 5866 | 57 1297 201 1801 108 . 62 587 608 903 . . . . . . . 25 . 217 . . Cannons 2303 | . . . . . . . . . . . . . . . . . . . 65 831 1407 Explosions 4836 | . . 370 188 233 . 514 248 585 159 . . . 28 . 514 647 . . . . 1350 Melee 4312 | . . . . . . . . . 354 173 1747 . 806 317 157 758 . . . . . Ramming 46 | . . . 21 . . . . . . . . . . . . . 4 . . 21 . Kinetic 2152 | . 745 . . . . . . . . . . . . . . . . . . . 1407 Thermal 6986 | 57 552 201 1801 108 . 62 700 608 903 . . . . . 69 . 25 . 282 831 787 Explosive 3867 | . . 370 188 233 . 514 135 585 159 . . . 28 . 445 647 . . . . 563 Electromagnetic . | . . . . . . . . . . . . . . . . . . . . . . Impact . | . . . . . . . . . . . . . . . . . . . . . . Slashing 4312 | . . . . . . . . . 354 173 1747 . 806 317 157 758 . . . . . Piercing . | . . . . . . . . . . . . . . . . . . . . . . Highest Corruption 12 | . 3 3 7 7 7 7 . 4 4 4 5 7 7 2 1 12 . 7 7 7 4 Average Corruption 4 | . 2 3 6 7 7 7 . 3 4 4 4 7 2 2 1 5 . 7 7 7 1 Corruption Purged 11 | . . . . . . . . . . . 5 . 5 . . 1 . . . . . Corruption Blocked . | . . . . . . . . . . . . . . . . . . . . . . Effects 259 | . 24 21 38 41 13 16 . 17 18 7 9 . 8 6 2 3 . 2 14 12 8 Message Errors 52 | . 2 3 6 12 5 6 . 3 3 1 2 . 1 2 1 . . . 2 2 1 Matter Fused 68 | . 3 3 15 7 2 3 . 7 7 3 2 . 5 1 . 1 . . 5 3 1 Heat Flow Errors 28 | . 3 6 3 7 1 3 . . 1 . . . . 1 1 . . . . 1 1 Energy Discharges 38 | . 6 1 5 5 3 . . 3 2 2 3 . 2 . . 1 . . 2 1 2 Parts Rejected 1 | . . . . . . . . . 1 . . . . . . . . . . . . Parts Fused 2 | . . . . . . . . . 1 . . . . 1 . . . . . . . Data Loss (minor) 41 | . 6 6 2 9 1 3 . 2 1 . 2 . . 1 . 1 . 1 3 3 . Data Loss (major) 10 | . 1 1 1 . 1 . . 1 . 1 . . . . . . . . 2 1 1 Misfires 9 | . 3 . . 1 . . . 1 1 . . . . . . . . 1 . 1 1 Alerts 4 | . . . 3 . . 1 . . . . . . . . . . . . . . . Weapon Failures 6 | . . 1 3 . . . . . 1 . . . . . . . . . . . 1 Overload Shots . | . . . . . . . . . . . . . . . . . . . . . . Overflow Damage 1462 | . . . . 9 . 118 19 58 32 23 551 . 246 48 42 159 . . . . 157 Projectiles . | . . . . . . . . . . . . . . . . . . . . . . Explosions 436 | . . . . 9 . 118 19 58 . . . . . . 13 62 . . . . 157 Melee 1026 | . . . . . . . . . 32 23 551 . 246 48 29 97 . . . . . Knockbacks 10 | . . . . . . . . . . . . . . . . . . . . . 10 Impact . | . . . . . . . . . . . . . . . . . . . . . . Kinetic 10 | . . . . . . . . . . . . . . . . . . . . . 10 Secondary . | . . . . . . . . . . . . . . . . . . . . . . Self-Inflicted Damage 435 | . . 63 . . . 43 195 . 35 . . . 30 . . 57 2 . . 10 . Shots 11 | . . 3 . . . 2 3 . 1 . . . 1 . . 1 . . . . . Rammed 5 | . . . 2 . . . . . . . . . . . . . 1 . . 2 . Targets Rammed 5 | . . . 2 . . . . . . . . . . . . . 1 . . 2 . Kicked . | . . . . . . . . . . . . . . . . . . . . . . Crushed . | . . . . . . . . . . . . . . . . . . . . . . Highest Temperature 515 | 60 515 239 248 227 84 223 60 456 504 1 39 15 41 247 272 27 46 60 195 260 204 Average Temperature 59 | 23 167 88 72 67 48 51 14 158 69 1 10 7 12 26 68 6 28 36 69 90 102 Received Heat Transfer 1633 | . 291 57 270 . . 18 99 63 297 . 6 . . 71 . 283 . . . 106 72 Effects 14 | . 10 . . . . . . 2 2 . . . . . . . . . . . . Shutdowns 5 | . 4 . . . . . . . 1 . . . . . . . . . . . . Energy Bleed 3 | . 1 . . . . . . 2 . . . . . . . . . . . . . Short Circuit 3 | . 2 . . . . . . . 1 . . . . . . . . . . . . Damage (major) 3 | . 3 . . . . . . . . . . . . . . . . . . . . Siege Activations . | . . . . . . . . . . . . . . . . . . . . . . Martial Activations . | . . . . . . . . . . . . . . . . . . . . . . Shielding Activations . | . . . . . . . . . . . . . . . . . . . . . . Robots Disrupted . | . . . . . . . . . . . . . . . . . . . . . . Combat Hostiles . | . . . . . . . . . . . . . . . . . . . . . . Robots Corrupted . | . . . . . . . . . . . . . . . . . . . . . . Combat Hostiles . | . . . . . . . . . . . . . . . . . . . . . . Parts Fried . | . . . . . . . . . . . . . . . . . . . . . . Impact Corruptions . | . . . . . . . . . . . . . . . . . . . . . . Robots Melted 3 | . . . 1 . . . . . . . . . . . . . . . . 2 . Combat Hostiles 3 | . . . 1 . . . . . . . . . . . . . . . . 2 . Parts Melted 22 | 1 . 2 5 . . . . 3 2 . . . . . . . . . 2 7 . Heat Transferred 11701 | 149 1646 666 4110 130 . 70 770 715 1125 . . . . . 50 . 37 . 433 1250 550 Parts Sabotaged . | . . . . . . . . . . . . . . . . . . . . . . Parts Stolen . | . . . . . . . . . . . . . . . . . . . . . . Parts Stripped . | . . . . . . . . . . . . . . . . . . . . . . Power Chain Reactions . | . . . . . . . . . . . . . . . . . . . . . . Alert | -11 -10 -10 -9 -9 -9 -8 -8 -8 -8 -8 -7 -7 -7 -7 -6 -6 -5 -5 -5 -5 -4 ------- Run | Yrd Mat Min Mat Min Exi Min Mat Gar Mat Gar Fac Was Fac Gar Fac Gar Fac Was Fac Gar Fac Maximum Alert Level 3 | . 1 . 1 . . . . 3 2 1 . . . 2 1 2 1 . . 1 2 Low Security (%) 74 | 100 96 100 94 100 . 100 100 4 17 60 100 100 100 37 13 6 64 100 100 86 90 Level 1 15 | . 3 . 5 . . . . 20 42 39 . . . 31 86 73 35 . . 13 6 Level 2 9 | . . . . . . . . 69 40 . . . . 31 . 19 . . . . 3 Level 3 . | . . . . . . . . 5 . . . . . . . . . . . . . Level 4 . | . . . . . . . . . . . . . . . . . . . . . . Level 5 . | . . . . . . . . . . . . . . . . . . . . . . High Security . | . . . . . . . . . . . . . . . . . . . . . . Max Security . | . . . . . . . . . . . . . . . . . . . . . . Peak Influence 746 | 10 211 150 276 119 . 157 173 746 450 219 114 . 33 430 276 525 238 46 17 229 582 Initial 363 | . . 54 51 104 . . . 91 363 84 114 . . 21 224 148 238 46 11 . 98 Average 155 | 1 155 44 120 25 . 61 63 452 344 167 44 . 11 262 225 343 186 33 1 131 96 Influence Increases 7022 | 15 764 314 736 119 . 212 386 665 473 155 245 . 180 536 188 826 5 . 46 249 908 Destroy 0b10 Robot/C 2900 | . 320 200 460 60 . 120 180 340 240 20 40 . . 160 20 340 . . . 140 260 Destroy 0b10 Robot/NC 425 | 15 55 10 75 . . 5 30 . 35 5 55 . 25 . 35 10 5 . 15 . 50 Destroy Leader 576 | . 80 40 122 10 . 20 46 10 80 . 30 . 4 10 12 10 . . 6 20 76 Allied During Kill 78 | . . . 1 . . . . . 7 . 3 . . 32 . 35 . . . . . Successful Hack 220 | . 24 . 9 . . . 3 28 15 12 31 . 59 12 13 14 . . . . . Disable Machine 555 | . . . . 30 . . 45 15 . . . . . 15 45 60 . . . 15 330 Anti-Garrison Action 500 | . . . . . . . . 100 . 50 . . . 100 . 200 . . . 50 . Destroy Structure 733 | . . 49 9 19 . 37 82 112 36 38 11 . 17 27 18 67 . . 10 9 192 Partial Spotted 60 | . . . . . . . . . . . . . 30 . 30 . . . . . . Lose Combat Pursuer 975 | . 285 15 60 . . 30 . 60 60 30 75 . 45 180 15 90 . . 15 15 . Influence Decreases 6440 | 15 624 322 600 387 . 212 246 59 1089 66 462 2 149 140 403 584 326 117 61 61 515 Entered New Map 1593 | . . 86 81 164 . . . 49 383 46 105 2 . 10 203 64 216 87 5 1 91 Time Decay 3697 | 15 614 236 509 223 . 212 236 . 386 . 357 . 149 . 190 . 110 30 56 . 374 Lost Part 370 | . 10 . 10 . . . 10 10 10 . . . . 30 10 200 . . . 40 40 Lost Ally 480 | . . . . . . . . . 10 20 . . . 100 . 320 . . . 20 10 Purge Threat 300 | . . . . . . . . . 300 . . . . . . . . . . . . Squads Dispatched 29 | . 3 . 4 . . . 3 . 1 . 2 . 2 . 4 1 1 . 1 . 7 Investigation 5 | . 2 . 1 . . . . . . . . . . . 1 . . . 1 . . Extermination 5 | . . . . . . . . . . . 2 . 1 . 1 . . . . . 1 Reinforcement 12 | . 1 . 3 . . . 1 . 1 . . . 1 . 1 . 1 . . . 3 Assault 1 | . . . . . . . . . . . . . . . . 1 . . . . . Garrison 6 | . . . . . . . 2 . . . . . . . 1 . . . . . 3 Intercept . | . . . . . . . . . . . . . . . . . . . . . . Searches Triggered . | . . . . . . . . . . . . . . . . . . . . . . Construction Impeded 2 | . . . . . . . . . . . . . 1 . 1 . . . . . . Haulers Reinforced 2 | . . . . . . . . . . . . . . . . . . . . . 2 Active Scanning Responses . | . . . . . . . . . . . . . . . . . . . . . . Cargo Convoy Interrupts . | . . . . . . . . . . . . . . . . . . . . . . Alert ID Control Effect 9 | . . . . . . . . . . . . . . 2 . 7 . . . . . Stealth | -11 -10 -10 -9 -9 -9 -8 -8 -8 -8 -8 -7 -7 -7 -7 -6 -6 -5 -5 -5 -5 -4 --------- Run | Yrd Mat Min Mat Min Exi Min Mat Gar Mat Gar Fac Was Fac Gar Fac Gar Fac Was Fac Gar Fac Distress Signals 18 | . 4 . 2 . . . . . 6 . 4 . 1 . . . . . . . 1 Communications Jammed 8 | . . . . . . . . . . . . . . . . . . . . . 8 Distress Signals 7 | . . . . . . . . . . . . . . . . . . . . . 7 Times Spotted 283 | . 40 11 41 3 . 6 12 16 24 3 16 3 5 13 5 35 1 6 7 17 19 Peak Tracking Total 6 | . 6 3 4 3 . 3 2 5 5 5 4 3 3 6 3 6 1 6 4 6 4 Tactical Retreats 50 | . 17 1 4 . . 2 . 2 4 1 5 . 2 5 1 4 . . 1 1 . Traps | -11 -10 -10 -9 -9 -9 -8 -8 -8 -8 -8 -7 -7 -7 -7 -6 -6 -5 -5 -5 -5 -4 ------- Run | Yrd Mat Min Mat Min Exi Min Mat Gar Mat Gar Fac Was Fac Gar Fac Gar Fac Was Fac Gar Fac Traps Triggered 22 | . 3 . 2 . . . . 1 . 3 1 . . 2 . 6 1 . 1 2 . Indirectly . | . . . . . . . . . . . . . . . . . . . . . . Trap Hack Attempts . | . . . . . . . . . . . . . . . . . . . . . . Triggered . | . . . . . . . . . . . . . . . . . . . . . . Disarmed . | . . . . . . . . . . . . . . . . . . . . . . Reprogrammed . | . . . . . . . . . . . . . . . . . . . . . . Reused . | . . . . . . . . . . . . . . . . . . . . . . Traps Extracted . | . . . . . . . . . . . . . . . . . . . . . . Installed . | . . . . . . . . . . . . . . . . . . . . . . Triggered . | . . . . . . . . . . . . . . . . . . . . . . Machines | -11 -10 -10 -9 -9 -9 -8 -8 -8 -8 -8 -7 -7 -7 -7 -6 -6 -5 -5 -5 -5 -4 ---------- Run | Yrd Mat Min Mat Min Exi Min Mat Gar Mat Gar Fac Was Fac Gar Fac Gar Fac Was Fac Gar Fac Machines Disabled 48 | . . . . 2 . . 3 4 . 1 . . . 3 3 8 . . . 2 22 Max in Single Turn 11 | . . . . 2 . . 2 1 . 1 . . . 1 3 1 . . . 1 11 Garrison Access 5 | . . . . . . . . . . . 2 . . . 1 . . . . . 2 Garrison Relay 10 | . . . . . . . . 2 . 1 . . . 2 . 4 . . . 1 . Machines Repaired . | . . . . . . . . . . . . . . . . . . . . . . Machines Dismantled . | . . . . . . . . . . . . . . . . . . . . . . Machines Sabotaged . | . . . . . . . . . . . . . . . . . . . . . . Overloaded Fab Kills . | . . . . . . . . . . . . . . . . . . . . . . Hacking | -11 -10 -10 -9 -9 -9 -8 -8 -8 -8 -8 -7 -7 -7 -7 -6 -6 -5 -5 -5 -5 -4 --------- Run | Yrd Mat Min Mat Min Exi Min Mat Gar Mat Gar Fac Was Fac Gar Fac Gar Fac Was Fac Gar Fac Machines Accessed 67 | . 7 1 5 . 2 . 4 2 7 1 11 . 9 1 7 1 . . 4 . 5 Terminals 42 | . 6 . 4 . . . 2 2 5 1 6 . 7 1 3 1 . . 3 . 1 Fabricators 2 | . . . . . . . . . . . 1 . . . . . . . . . 1 Repair Stations 3 | . 1 . . . . . . . . . . . . . 1 . . . . . 1 Recycling Units 1 | . . . . . . . . . . . 1 . . . . . . . . . . Scanalyzers 6 | . . . 1 . . . 1 . 1 . 1 . 1 . 1 . . . . . . Garrison Access 10 | . . . . . . . 1 . 1 . 2 . 1 . 2 . . . 1 . 2 Total Hacks 170 | . 20 1 16 . 2 . 9 3 23 1 30 . 27 2 19 1 . . 10 . 6 Successful 92 | . 12 1 6 . 2 . 5 2 13 1 14 . 16 1 12 1 . . 2 . 4 Failed 75 | . 8 . 9 . . . 3 1 9 . 16 . 11 1 7 . . . 8 . 2 Catastrophic 8 | . . . . . . . . . . . 2 . 2 . . . . . 2 . 2 Database Lockouts 3 | . . . 1 . . . 1 . 1 . . . . . . . . . . . . Manual 120 | . 18 . 15 . 1 . 5 . 20 . 19 . 19 . 13 . . . 9 . 1 Terminals 134 | . 18 . 14 . . . 4 3 20 1 24 . 24 2 13 1 . . 9 . 1 Fabricators 2 | . . . . . . . . . . . 1 . . . . . . . . . 1 Repair Stations 5 | . 2 . . . . . . . . . . . . . 1 . . . . . 2 Recycling Units 1 | . . . . . . . . . . . 1 . . . . . . . . . . Scanalyzers 13 | . . . 2 . . . 3 . 2 . 2 . 2 . 2 . . . . . . Garrison Access 12 | . . . . . . . 2 . 1 . 2 . 1 . 3 . . . 1 . 2 Terminal Hacks 22 | . 1 1 1 . 2 . . 2 5 1 1 . 4 1 2 1 . . . . . Record 1 | . . . . . 1 . . . . . . . . . . . . . . . . Robot Analysis 4 | . . . 1 . . . . . 3 . . . . . . . . . . . . Open Door 1 | . . 1 . . . . . . . . . . . . . . . . . . . Level Access Points 1 | . . . . . . . . . . . . . 1 . . . . . . . . Branch Access Points 1 | . . . . . . . . . . . . . . . 1 . . . . . . Emergency Access Points 2 | . . . . . . . . 1 . 1 . . . . . . . . . . . Terminal Index 2 | . . . . . . . . . . . 1 . . . 1 . . . . . . Garrison Index 1 | . . . . . . . . . . . . . 1 . . . . . . . . Unreport Threat 2 | . . . . . . . . . 2 . . . . . . . . . . . . Hauler Manifests 2 | . 1 . . . . . . . . . . . 1 . . . . . . . . Zone Layout 1 | . . . . . . . . . . . . . 1 . . . . . . . . Garrison Registry 1 | . . . . . . . . 1 . . . . . . . . . . . . . Patrol Navigation 1 | . . . . . . . . . . . . . . 1 . . . . . . . Security Stations 1 | . . . . . . . . . . . . . . . . 1 . . . . . Proto ID Catalog 1 | . . . . . 1 . . . . . . . . . . . . . . . . Fabricator Hacks 1 | . . . . . . . . . . . . . . . . . . . . . 1 Network Status 1 | . . . . . . . . . . . . . . . . . . . . . 1 Repair Station Hacks 1 | . . . . . . . . . . . . . . . . . . . . . 1 Scan Component 1 | . . . . . . . . . . . . . . . . . . . . . 1 Recycling Unit Hacks 1 | . . . . . . . . . . . 1 . . . . . . . . . . Retrieve Components 1 | . . . . . . . . . . . 1 . . . . . . . . . . Scanalyzer 7 | . . . 1 . . . 2 . 1 . . . 1 . 2 . . . . . . Retrieve Study 7 | . . . 1 . . . 2 . 1 . . . 1 . 2 . . . . . . Garrison Access Hacks 11 | . . . . . . . 1 . 1 . 2 . 1 . 3 . . . 1 . 2 Unlock Access 5 | . . . . . . . 1 . 1 . . . 1 . 1 . . . 1 . . Seal Access 5 | . . . . . . . . . . . 2 . . . 1 . . . . . 2 Coupler Status 1 | . . . . . . . . . . . . . . . 1 . . . . . . Unauthorized Hacks 49 | . 11 . 4 . . . 2 . 6 . 10 . 10 . 5 . . . 1 . . Terminals 47 | . 10 . 4 . . . 2 . 6 . 10 . 10 . 4 . . . 1 . . Assimilate 1 | . . . . . . . . . 1 . . . . . . . . . . . . Botnet 29 | . 5 . 2 . . . 2 . 5 . 6 . 6 . 2 . . . 1 . . Skim 17 | . 5 . 2 . . . . . . . 4 . 4 . 2 . . . . . . Fabricators . | . . . . . . . . . . . . . . . . . . . . . . Repair Stations 2 | . 1 . . . . . . . . . . . . . 1 . . . . . . Patch 2 | . 1 . . . . . . . . . . . . . 1 . . . . . . Recycling Units . | . . . . . . . . . . . . . . . . . . . . . . Scanalyzers . | . . . . . . . . . . . . . . . . . . . . . . Garrison Access . | . . . . . . . . . . . . . . . . . . . . . . Data Cores Recovered 1 | . . . . . . . . . . . 1 . . . . . . . . . . Used . | . . . . . . . . . . . . . . . . . . . . . . Hacking Detections 47 | . 6 . 4 . . . 2 2 6 . 7 . 8 . 6 . . . 4 . 2 Full Trace Events 2 | . 1 . . . . . . . . . . . . . . . . . 1 . . Feedback Events . | . . . . . . . . . . . . . . . . . . . . . . Feedback Blocked . | . . . . . . . . . . . . . . . . . . . . . . Robot Schematics Acquired . | . . . . . . . . . . . . . . . . . . . . . . Robots Built . | . . . . . . . . . . . . . . . . . . . . . . Authchips . | . . . . . . . . . . . . . . . . . . . . . . Time . | . . . . . . . . . . . . . . . . . . . . . . Total Robot Build Rating . | . . . . . . . . . . . . . . . . . . . . . . Part Schematics Acquired . | . . . . . . . . . . . . . . . . . . . . . . Parts Built . | . . . . . . . . . . . . . . . . . . . . . . Authchips . | . . . . . . . . . . . . . . . . . . . . . . Time . | . . . . . . . . . . . . . . . . . . . . . . Total Part Build Rating . | . . . . . . . . . . . . . . . . . . . . . . Part Studies Acquired 6 | . . . 1 . . . 2 . . . . . 1 . 2 . . . . . . Parts Repaired . | . . . . . . . . . . . . . . . . . . . . . . Time . | . . . . . . . . . . . . . . . . . . . . . . Parts Recycled . | . . . . . . . . . . . . . . . . . . . . . . Recycled Matter . | . . . . . . . . . . . . . . . . . . . . . . Retrieved Matter . | . . . . . . . . . . . . . . . . . . . . . . Retrieved Components 9 | . . . . . . . . . . . 9 . . . . . . . . . . Parts Scanalyzed . | . . . . . . . . . . . . . . . . . . . . . . Part Schematics Acquired . | . . . . . . . . . . . . . . . . . . . . . . Parts Damaged . | . . . . . . . . . . . . . . . . . . . . . . Bothacking | -11 -10 -10 -9 -9 -9 -8 -8 -8 -8 -8 -7 -7 -7 -7 -6 -6 -5 -5 -5 -5 -4 ------------ Run | Yrd Mat Min Mat Min Exi Min Mat Gar Mat Gar Fac Was Fac Gar Fac Gar Fac Was Fac Gar Fac Used RIF Installer 6 | . . . . . . . . 2 . 1 . . . 1 . 1 . . . 1 . Command Fork 1 | . . . . . . . . . . . . . . . . . . . . 1 . Zone Cloak 1 | . . . . . . . . 1 . . . . . . . . . . . . . Patrol Navigation 1 | . . . . . . . . . . . . . . . . 1 . . . . . Alert ID Control 1 | . . . . . . . . . . 1 . . . . . . . . . . . Structural Interface 1 | . . . . . . . . . . . . . . 1 . . . . . . . Robots Hacked 42 | . . . . . . . . . . 2 3 . 1 6 . 17 . . 8 2 3 Non-combat 13 | . . . . . . . . . . . 3 . 1 . . . . . 8 . 1 Combat 29 | . . . . . . . . . . 2 . . . 6 . 17 . . . 2 2 Robot Hacks Applied 49 | . . . . . . . . . . 2 6 . 2 6 . 18 . . 10 2 3 parse_system 2 | . . . . . . . . . . . 1 . . . . . . . 1 . . generate_echo 1 | . . . . . . . . . . . 1 . . . . . . . . . . ignore_repairs 1 | . . . . . . . . . . . . . . . . . . . 1 . . map_walls 1 | . . . . . . . . . . . . . . . . . . . 1 . . drop_inventory 1 | . . . . . . . . . . . . . . . . . . . . . 1 find_recycling 1 | . . . . . . . . . . . . . . . . . . . 1 . . ignore_parts 1 | . . . . . . . . . . . . . . . . . . . 1 . . find_station 1 | . . . . . . . . . . . . . . . . . . . 1 . . check_alert 1 | . . . . . . . . . . . 1 . . . . . . . . . . block_reporting 1 | . . . . . . . . . . . 1 . . . . . . . . . . summon_haulers 3 | . . . . . . . . . . . 1 . . . . . . . 2 . . clear_repairs 1 | . . . . . . . . . . . 1 . . . . . . . . . . map_route 1 | . . . . . . . . . . . . . . . . . . . 1 . . overload_power 3 | . . . . . . . . . . . . . 1 1 . . . . . . 1 amplify_resonance 2 | . . . . . . . . . . . . . 1 . . . . . 1 . . disable_weapons 3 | . . . . . . . . . . 1 . . . . . 2 . . . . . reboot_system 1 | . . . . . . . . . . . . . . 1 . . . . . . . go_dormant 1 | . . . . . . . . . . . . . . . . 1 . . . . . overwrite_iff 14 | . . . . . . . . . . 1 . . . 3 . 8 . . . 1 1 streamctrl_high 1 | . . . . . . . . . . . . . . . . 1 . . . . . formatsys_high 8 | . . . . . . . . . . . . . . 1 . 6 . . . 1 . Relay Couplers Released 41 | . . . . . . . . 8 . 3 . . . 9 . 16 . . . 5 . Machine Destruction 41 | . . . . . . . . 8 . 3 . . . 9 . 16 . . . 5 . Attached 18 | . . . . . . . . . 1 1 1 . . 2 . 9 2 . . 2 . Fabnet Peak Effective % . | . . . . . . . . . . . . . . . . . . . . . . Robots Rewired 8 | . . . . . . . . . . . . . . 2 . 6 . . . . . Allies Hacked . | . . . . . . . . . . . . . . . . . . . . . . Hacks Repelled . | . . . . . . . . . . . . . . . . . . . . . . Allies | -11 -10 -10 -9 -9 -9 -8 -8 -8 -8 -8 -7 -7 -7 -7 -6 -6 -5 -5 -5 -5 -4 -------- Run | Yrd Mat Min Mat Min Exi Min Mat Gar Mat Gar Fac Was Fac Gar Fac Gar Fac Was Fac Gar Fac Total Allies 34 | . . . . . . . . . 1 1 . . . 8 . 21 . . . 2 1 Largest Group 5 | . . . . . . . . . 1 1 . . . 4 . 5 . . . 1 1 Highest-Rated Group 175 | . . . . . . . . . 10 21 . . . 175 . 154 . . . 29 47 Highest-Rated Ally 95 | . . . . . . . . . 10 21 . . . 95 . 43 . . . 29 47 Total Orders 22 | . . 1 4 . . . . . 4 . 8 . . . . 5 . . . . . STAY 7 | . . . . . . . . . 2 . 2 . . . . 3 . . . . . FOLLOW 4 | . . . . . . . . . 1 . 1 . . . . 2 . . . . . EXPLORE 1 | . . . 1 . . . . . . . . . . . . . . . . . . RETURN 10 | . . 1 3 . . . . . 1 . 5 . . . . . . . . . . Ally Attacks 150 | . . . 13 . . . . . 6 3 17 . . 20 . 86 . . . 4 1 Total Damage 2730 | . . . 63 . . . . . 9 51 61 . . 675 . 1771 . . . 79 21 Kills 24 | . . . 1 . . . . . . . . . . 7 . 16 . . . . . Allies Corrupted . | . . . . . . . . . . . . . . . . . . . . . . Allies Melted . | . . . . . . . . . . . . . . . . . . . . . . Intel | -11 -10 -10 -9 -9 -9 -8 -8 -8 -8 -8 -7 -7 -7 -7 -6 -6 -5 -5 -5 -5 -4 ------- Run | Yrd Mat Min Mat Min Exi Min Mat Gar Mat Gar Fac Was Fac Gar Fac Gar Fac Was Fac Gar Fac Active Infowar (turns) 5576 | 28 478 . . . . . . . 238 333 840 18 387 635 380 914 . . 354 435 536 Optics 3745 | . . . . . . . . . 238 333 840 18 387 635 380 914 . . . . . Seismic 506 | 28 478 . . . . . . . . . . . . . . . . . . . . Machine Analysis 2563 | . . . . . . . . . . . 230 18 387 635 380 913 . . . . . Cloaking 1 | . . . . . . . . . . . 1 . . . . . . . . . . Jamming 2996 | . . . . . . . . . . . . . 184 264 380 843 . . 354 435 536 Robot Analysis Total 4 | . . . 1 . . . . . 3 . . . . . . . . . . . . Derelict Logs Recovered 4 | . . 2 . 2 . . . . . . . . . . . . . . . . . Drone Launches 23 | . . 1 8 . . . . . 3 . 11 . . . . . . . . . . Drone Recoveries 23 | . . 1 8 . . . . . 3 . 11 . . . . . . . . . . Exploration | -11 -10 -10 -9 -9 -9 -8 -8 -8 -8 -8 -7 -7 -7 -7 -6 -6 -5 -5 -5 -5 -4 ------------- Run | Yrd Mat Min Mat Min Exi Min Mat Gar Mat Gar Fac Was Fac Gar Fac Gar Fac Was Fac Gar Fac Turns Passed 15830 | 141 2682 995 1541 1208 370 550 823 1013 909 333 840 18 387 635 380 946 226 68 417 485 863 Spaces Moved 12969 | 70 850 561 647 429 229 309 408 491 758 509 1406 65 924 1037 913 1480 357 112 473 348 593 Core 315 | 3 . . . . . . . . . . . . . . . 62 250 . . . . Treads 4275 | 67 850 561 647 429 229 309 408 491 284 . . . . . . . . . . . . Legs 318 | . . . . . . . . . . . . . . . . . . . . . 318 Wheels 79 | . . . . . . . . . . . . . . . . . . . . . 79 Hover 1235 | . . . . . . . . . . . . . . . . . 107 112 473 348 195 Flight 6747 | . . . . . . . . . 474 509 1406 65 924 1037 913 1418 . . . . 1 Fastest Speed 20 | 50 160 160 160 160 160 160 160 165 31 31 28 28 26 26 20 20 48 48 48 46 46 Average Speed 82 | 155 217 160 160 187 160 164 164 165 84 31 28 28 26 26 24 26 54 48 48 78 98 Slowest Speed 240 | 160 240 160 240 240 160 240 165 165 229 31 111 28 28 28 25 100 70 48 48 101 205 Overloaded Moves . | . . . . . . . . . . . . . . . . . . . . . . Propulsion Burnouts . | . . . . . . . . . . . . . . . . . . . . . . Robots Hopped 13 | . . . . . . . . . 4 . 3 . 2 . 2 2 . . . . . Potential Cave-ins . | . . . . . . . . . . . . . . . . . . . . . . Cave-ins Triggered . | . . . . . . . . . . . . . . . . . . . . . . Exploration Rate (%) 53 | 3 98 82 60 99 60 74 30 49 60 51 37 83 39 75 30 96 14 76 16 39 15 Regions Visited 21 Branch Regions 4 Pre-discovered Areas 4 | . 2 . . 1 1 . . . . . . . . . . . . . . . . Known Exits Taken 8 | . . 1 1 . . 1 1 . 1 . . . 1 . 1 . . . 1 . . Unknown Exits Taken 4 | 1 1 . . 1 1 . . . . . . . . . . . . . . . . Scrap Searched 3 | . . 1 . 1 . 1 . . . . . . . . . . . . . . . Spaces Dug 189 | . . 24 . . . 29 12 33 21 8 11 . 22 10 13 1 . . 4 . 1 Terrain Destroyed 593 | . . 58 10 20 . 53 90 65 44 8 11 . 22 10 21 78 . . 5 2 96 Melee 51 | . . . . . . . 1 . 1 8 11 . 6 10 13 1 . . . . . Projectile 24 | . . . . . . . . . . . . . . . . . . . 5 2 17 AOE 518 | . . 58 10 20 . 53 89 65 43 . . . 16 . 8 77 . . . . 79 Terrain Rammed . | . . . . . . . . . . . . . . . . . . . . . . Walls Destroyed . | . . . . . . . . . . . . . . . . . . . . . . Machines Disabled . | . . . . . . . . . . . . . . . . . . . . . . Actions | -11 -10 -10 -9 -9 -9 -8 -8 -8 -8 -8 -7 -7 -7 -7 -6 -6 -5 -5 -5 -5 -4 --------- Run | Yrd Mat Min Mat Min Exi Min Mat Gar Mat Gar Fac Was Fac Gar Fac Gar Fac Was Fac Gar Fac Total 17000 | 88 1541 622 973 820 235 335 495 604 936 650 1760 64 1028 1356 1034 1974 385 125 645 518 812 Wait 2686 | 1 582 32 147 382 1 10 37 41 90 78 257 . 55 231 80 275 11 13 109 124 130 Move 12929 | 69 849 560 646 428 228 308 408 490 750 508 1400 64 920 1035 910 1475 357 111 473 347 593 Hop 12 | . . . . . . . . . 4 . 3 . 2 . 1 2 . . . . . Pick Up 104 | 5 15 3 11 1 2 . 5 3 7 2 11 . 9 5 2 15 1 1 3 2 1 Fast Attach 133 | 7 4 1 19 . . . 4 2 12 . 10 . 5 4 7 16 8 . 11 4 19 Attach 39 | . 4 . 1 . . 2 1 1 4 . 3 . 1 4 2 8 4 . 1 2 1 Detach 12 | . . . . . 2 . . . . . 2 . . 1 1 2 2 . 1 1 . Swap 85 | 1 2 5 15 4 . 5 5 20 10 2 1 . 2 2 1 4 . . 1 5 . Drop 148 | . 12 2 36 . 2 . 3 5 15 1 8 . 8 7 7 21 . . 10 3 8 Fire 494 | 5 73 19 96 5 . 10 27 30 33 . 10 . 5 16 7 40 1 . 29 28 60 Melee 221 | . . . . . . . 5 12 11 29 55 . 21 25 16 40 . . 7 . . Ram 3 | . . . . . . . . . . . . . . . . . 1 . . 2 . Kick . | . . . . . . . . . . . . . . . . . . . . . . Crush 2 | . . . 2 . . . . . . . . . . . . . . . . . . Escape Stasis 131 | . . . . . . . . . . 30 . . . 26 . 75 . . . . . Rewire 1 | . . . . . . . . . . . . . . . . 1 . . . . . Trap . | . . . . . . . . . . . . . . . . . . . . . . Miscellaneous . | . . . . . . . . . . . . . . . . . . . . . . Route ------- -11/Scrapyard -10/Materials (discovered 6 exits: *Mat x3 / *Min x2 / *Sub) -10/Mines (discovered 2 exits: *Mat x2) -9/Materials (discovered 5 exits: *Mat x3 / *Min x2) -9/Mines (discovered 3 exits: *Mat x2 / *Exi) -9/Exiles -8/Mines (discovered 2 exits: *Mat x2) -8/Materials (discovered 3 exits: *Fac / Sto / Gar) -8/Garrison (discovered 3 exits: *Mat x3) -8/Materials (discovered 3 exits: *Sto x2 / Gar) -8/Garrison -7/Factory -7/Waste -7/Factory (discovered 5 exits: *Fac x4 / Gar) -7/Garrison (discovered 3 exits: *Fac x3) -6/Factory (discovered 3 exits: Low x2 / Gar) -6/Garrison (discovered 3 exits: [*Fac x3]) -5/Factory -5/Waste -5/Factory -5/Garrison -4/Factory History --------- Turn | Location | Event 6 | -11/Scrapyard | Discovered new exit (range 16) 142 | -11/Scrapyard | Entered Materials 198 | -10/Materials | Discovered new exit (range 7) 283 | -10/Materials | Discovered new exit (range 10) 300 | -10/Materials | Build established: Mutant 611 | -10/Materials | Discovered new exit (range 5) 772 | -10/Materials | Discovered new exit (range 7) 1007 | -10/Materials | Core integrity fell below 50% 1235 | -10/Materials | Discovered new exit (range 14) 1504 | -10/Materials | Discovered new exit (range 4) 2251 | -10/Materials | Learned Storage security intel 2333 | -10/Materials | Learned location of 1 exit from Recycling 2404 | -10/Materials | Learned location of Recycling (-8) 2464 | -10/Materials | Learned location of 1 exit from Recycling 2514 | -10/Materials | Identified exit to Materials 2514 | -10/Materials | Identified exit to Subcaves 2584 | -10/Materials | Learned location of 2 exits from Subcaves 2623 | -10/Materials | Learned Recycling recycling unit intel 2795 | -10/Materials | Learned 2 Materials zone layouts 2824 | -10/Materials | Entered Mines 2957 | -10/Mines | Discovered exit to Materials (range 7) 2983 | -10/Mines | Found a damaged Exp. Sensor Array with a note attached 2986 | -10/Mines | Found Prototype Device 3019 | -10/Mines | Found the Drone Emporium 3022 | -10/Mines | Learned Materials garrison access intel 3029 | -10/Mines | Found Prototype Device 3029 | -10/Mines | Identified Thief Drone Bay 3052 | -10/Mines | Received a Rocket Launcher from a helpful Derelict 3085 | -10/Mines | Discovered exit to Materials (range 3) 3265 | -10/Mines | Found a hidden stash of uninstalled traps 3667 | -10/Mines | Core integrity fell below 20% 3819 | -10/Mines | Entered Materials 3819 | -9/Materials | Evolved 2 slots: Propulsion x1, Utility x1 3820 | -9/Materials | Identified exit to Mines 3821 | -9/Materials | Identified exit to Materials 4255 | -9/Materials | Discovered exit to Materials (range 14) 4670 | -9/Materials | Discovered exit to Materials (range 16) 4709 | -9/Materials | Central database locked down 5360 | -9/Materials | Entered Mines 5361 | -9/Mines | Met a Derelict testing a Signal Generator 5377 | -9/Mines | Assembled infested the area 5377 | -9/Mines | Found Signal Generator 6155 | -9/Mines | Destroyed YI-UF0 6168 | -9/Mines | Discovered exit to Materials (range 15) 6328 | -9/Mines | Discovered exit to Materials (range 4) 6377 | -9/Mines | Discovered new exit (range 5) 6568 | -9/Mines | Entered Exiles 6610 | -9/Exiles | Met 8R-AWN 6637 | -9/Exiles | Met EX-HEX 6706 | -9/Exiles | Met EX-BIN 6728 | -9/Exiles | Aligned with FarCom system 6730 | -9/Exiles | Given EX-Vault access code 6767 | -9/Exiles | Opened EX-Vault 6783 | -9/Exiles | Found Cloak of Protection 6814 | -9/Exiles | Warned to stay clear of 0b10 Research branches 6859 | -9/Exiles | Met EX-DEC 6869 | -9/Exiles | Learned location of Zion (-7) 6915 | -9/Exiles | Discovered new exit (range 12) 6938 | -9/Exiles | Left Exiles lab with Cloak of Protection 6938 | -9/Exiles | Entered Mines 7096 | -8/Mines | Discovered exit to Materials (range 15) 7393 | -8/Mines | Discovered exit to Materials (range 14) 7488 | -8/Mines | Entered Materials 7488 | -8/Materials | Evolved 2 slots: Propulsion x1, Utility x1 7489 | -8/Materials | Identified exit to Storage 7490 | -8/Materials | Loaded intel: 1 garrison access location 7509 | -8/Materials | Central database locked down 8137 | -8/Materials | Discovered new exit (range 4) 8169 | -8/Materials | Garrison activated, responded to threat 8311 | -8/Materials | Identified exit to Garrison 8311 | -8/Materials | Entered Garrison 8423 | -8/Garrison | Installed Relay Interface Framework 8462 | -8/Garrison | Triggered checkpoint 8543 | -8/Garrison | Garrison Relay disabled 8557 | -8/Garrison | Triggered checkpoint 8764 | -8/Garrison | Expanded RIF knowledge: Zone Cloak 9121 | -8/Garrison | Triggered checkpoint 9252 | -8/Garrison | Discovered new exit (range 30) 9252 | -8/Garrison | Discovered new exit (range 79) 9252 | -8/Garrison | Discovered new exit (range 84) 9267 | -8/Garrison | Garrison Relay disabled 9324 | -8/Garrison | Entered Materials 9324 | -8/Materials | Discovered exit to Storage (range 15) 9767 | -8/Materials | Discovered exit to Storage (range 4) 10218 | -8/Materials | Central database locked down 10233 | -8/Materials | Identified exit to Garrison 10233 | -8/Materials | Entered Garrison 10272 | -8/Garrison | Expanded RIF knowledge: Alert ID Control 10286 | -8/Garrison | Garrison Relay disabled 10295 | -8/Garrison | Build established: Sprinter 10401 | -8/Garrison | Discovered new exit (range 16) 10566 | -8/Garrison | Entered Factory 10566 | -7/Factory | Evolved 2 slots: Propulsion x1, Utility x1 10948 | -7/Factory | Build established: Hacker-Sprinter 11069 | -7/Factory | Discovered new exit (range 17) 11406 | -7/Factory | Sucked down chute 11406 | -7/Factory | Entered Waste 11409 | -7/Waste | Spotted C-40 Crusher 11411 | -7/Waste | Spotted C-40 Crusher 11411 | -7/Waste | Spotted C-40 Crusher 11420 | -7/Waste | Spotted C-40 Crusher 11420 | -7/Waste | Spotted C-40 Crusher 11421 | -7/Waste | EMP discharged 11421 | -7/Waste | Spotted C-40 Crusher 11422 | -7/Waste | Discovered new exit (range 10) 11424 | -7/Waste | Entered Factory 11473 | -7/Factory | Build established: Scout 11721 | -7/Factory | Identified exit to Factory 11811 | -7/Factory | Identified exit to Garrison 11811 | -7/Factory | Entered Garrison 11837 | -7/Garrison | Found embedded Infiltrators 11845 | -7/Garrison | Triggered checkpoint 11868 | -7/Garrison | Garrison Relay disabled 11893 | -7/Garrison | Build established: Ninja 12085 | -7/Garrison | Expanded RIF knowledge: Structural Interface 12096 | -7/Garrison | Discovered exit to Factory (range 17) 12119 | -7/Garrison | Triggered checkpoint 12134 | -7/Garrison | Garrison Relay disabled 12143 | -7/Garrison | Triggered checkpoint 12152 | -7/Garrison | Discovered exit to Factory (range 12) 12231 | -7/Garrison | Triggered checkpoint 12237 | -7/Garrison | Triggered checkpoint 12311 | -7/Garrison | Build established: Scout 12383 | -7/Garrison | Lost 3 parts (1p1n1w) 12424 | -7/Garrison | Discovered exit to Factory (range 13) 12446 | -7/Garrison | Entered Factory 12446 | -6/Factory | Evolved 2 slots: Propulsion x1, Utility x1 12486 | -6/Factory | Identified exit to Lower Caves 12580 | -6/Factory | Spotted B-75 Beast 12618 | -6/Factory | Garrison activated, responded to threat 12683 | -6/Factory | Build established: Ninja 12826 | -6/Factory | Identified exit to Garrison 12826 | -6/Factory | Entered Garrison 12831 | -6/Garrison | Expanded RIF knowledge: Patrol Navigation 12844 | -6/Garrison | H-XX Assembler disabled 12917 | -6/Garrison | Discovered new exit (range 10) 12969 | -6/Garrison | Triggered checkpoint 12997 | -6/Garrison | Triggered checkpoint 13008 | -6/Garrison | Garrison Relay disabled 13037 | -6/Garrison | Lost 3 allies 13170 | -6/Garrison | Garrison Relay disabled 13174 | -6/Garrison | Triggered checkpoint 13257 | -6/Garrison | Triggered checkpoint 13310 | -6/Garrison | Lost 5 allies 13398 | -6/Garrison | Triggered checkpoint 13439 | -6/Garrison | Garrison Relay disabled 13455 | -6/Garrison | Triggered checkpoint 13473 | -6/Garrison | Discovered new exit (range 8) 13578 | -6/Garrison | Learned Factory security intel 13585 | -6/Garrison | Garrison Relay disabled 13595 | -6/Garrison | Discovered new exit (range 4) 13706 | -6/Garrison | Lost 6 allies 13725 | -6/Garrison | Core integrity fell below 50% 13741 | -6/Garrison | System corruption reached 10% 13745 | -6/Garrison | Core integrity fell below 20% 13750 | -6/Garrison | Triggered checkpoint 13771 | -6/Garrison | Lost 19 parts (9n5u5w) 13772 | -6/Garrison | Entered Factory 13772 | -5/Factory | Evolved 2 slots: Propulsion x1, Utility x1 13998 | -5/Factory | Sucked down chute 13998 | -5/Factory | Entered Waste 14012 | -5/Waste | Spotted C-40 Crusher 14013 | -5/Waste | EMP discharged 14025 | -5/Waste | Build established: Mutant 14025 | -5/Waste | Spotted C-40 Crusher 14031 | -5/Waste | Spotted C-40 Crusher 14033 | -5/Waste | Spotted C-40 Crusher 14036 | -5/Waste | Spotted C-40 Crusher 14046 | -5/Waste | Spotted C-40 Crusher 14061 | -5/Waste | Discovered new exit (range 11) 14066 | -5/Waste | Entered Factory 14483 | -5/Factory | Identified exit to Garrison 14483 | -5/Factory | Entered Garrison 14601 | -5/Garrison | Triggered checkpoint 14679 | -5/Garrison | Expanded RIF knowledge: Command Fork 14684 | -5/Garrison | Garrison Relay disabled 14721 | -5/Garrison | Spotted B-75 Beast 14867 | -5/Garrison | Destroyed B-75 Beast 14929 | -5/Garrison | Triggered checkpoint 14929 | -5/Garrison | Triggered checkpoint 14963 | -5/Garrison | Discovered new exit (range 12) 14968 | -5/Garrison | Entered Factory 14968 | -4/Factory | Evolved 2 slots: Utility x2 14993 | -4/Factory | Lost 4 parts (1p1u2w) 15144 | -4/Factory | Garrison activated, responded to threat 15696 | -4/Factory | Watched by a mysterious "MATRIX" hacker. 15831 | -4/Factory | Self-destructed Last Messages --------------- 15803_ Fusion Modulator explodes. 15803_ K-01 Serf destroyed. 15804_ System corrupted: Substantial component data lost. 15817_ Slug penetrates Door. 15821_ Nuclear Reactor explodes. 15821_ A-15 Conveyor bypasses jamming via Transport Network Coupler. 15821_ A-15 Conveyor calls for reinforcements. 15821_ ALERT: Hostile activity reported, dispatching reinforcements to area. 15821_ A-15 Conveyor distress signal jammed. 15823_ The unstable cave ceiling collapses. 15823_ P-70 Sage knocked back. 15825_ P-70 Sage destroyed. 15827_ K-01 Serf knocked back. 15829_ X-82 Rainmaker destroyed. 15829_ Hvy. Gauss Cannon destroyed. 15829_ Knocked back. 15829_ Imp. Medium Armor Plating destroyed. 15829_ K-01 Serf destroyed. 15831_ ,Y/EDQU9S0ACHFZXQV ATG3S M4FYHJQQVAM5GEV Map ----- +----------------------------------------------------+ | ????# """ """ #????## %% =??? | | ????# #???# # =!?? | | ????# #???### ???? | | ###########+############ ### ######"# ?????? | | ? # + # #?#+######### ??????? | | ?"""" # # # #?# ! # ??????????? | | ?"""" + # # #?#= #???????????? | | #"""" # + # #?# #???????????? | | #"""" + # "" # #?# """" +???????????? | | #"""" ] # # """ # #?# """" #???????????? | | #"""" # # R" + #?# """" #???????????? | | #"""" + # """ # #?# """" #???????????? | | # # # # #?# #???????????? | | #"""" + ########## #?#######+###? ?????????? | | #"""" * # #????#####+####????# #??# ????????? | | #"""" # #????# ######+#### ????????? | | #"""" ! # #????# """ # # ????????? | | #"""" # #????# """ # """ # ????????? | | #"""" # #????# """ # "G """ # ????????? | | #"""" # #????# !!# """ """ # ?????#### | | #? # #????# """ ! # """ # #?#### # | | #?####### #????# """ # # ###""#### | | #???????# #????#! """ #! # ## | | #???????# #????# # ! # ## [ | | ######### ##########+######+## # !*[ % | | @ x% %[[=* | | !% %%% ==!= = | | k "" % % =%%![[! | | " ]!= | | "F ! | | ###+####################+##### "" = | | #?????????# # """ ###+#### | | #?????????# """ # """ | | "" """ #?????????# "Y" # """ | | "" """ #?????????# " " # | | "" """ #?????????# # | | #?????????# """ # | | "" """ #?????????# """ ### T####+###" | | "" """ #?????????# """ #?#### | | "" """ #?????????# #????# """ | | #?????????##########????# R" " | | #???????????????????????# """ # %= | | #???????????????????????# # ? | | ###########???????????????????????# # | | ??????????????????????????????????#""" # "" ? | | ??????????????????????????????????#""" # "" ? | | ??????????????????????????????????#""" # "??? | | ??????????????????????????????????? # "??? | | ?????????????????????????????????????" #? ???? | | ?????????????????????????????????????" #?????? | +----------------------------------------------------+ Best States ------------- Heat Dissipation 74 Energy Generation 21 Energy Capacity 315 Matter Stores 300 Matter Capacity 300 Sight Range 22 Terrain Scan Density 10 Jamming Range 12 Base Temperature (-) 200 Armor Coverage 450 Weapon Shielding 66 Evasion (%) 65 Targeting Accuracy 16 Target Analysis 9 Recoil Reduction 6 Offensive Hacking 10 Defensive Hacking 12 Relay Coupler Types 2 Relay Coupler Value 61 Authchip Count 1 Item Schematics ----------------- None Robot Schematics ------------------ None Fabricated ------------ Nothing Repaired ---------- Nothing Studied --------- Spread Laser | -9/Materials | Hacked Arm. Treads | -8/Materials | Hacked Imp. Treads | -8/Materials | Hacked Xenon Bombardment Thruster | -7/Factory | Hacked Power Sword | -6/Factory | Hacked Lgt. Angular Momentum Engine | -6/Factory | Hacked Alien Tech Used ----------------- None Achievements -------------- Hack The Planet Hackerman Not Today, Chutes Satisfying You Will Be Upgraded Challenges ------------ None Game ------ Seed SpectralTargetingMesh Manual? 0 Play Time 02:32:18 Cumulative 281.8 hours Start 2026.02.19 @ 12:32:37 End 2026.02.20 @ 14:28:19 Sessions 3 Manual Loads 0 Difficulty Rogue Special Mode None Game No. 231 Rogue 231 Adventurer 0 Explorer 0 Win Type - Total 16 Types 7/0/7/2/0/0/0/0/0/0 Lore% 82 Gallery% 72 Achievement% 54 Wizard Run 0 Options --------- Layout 1 ASCII 0 Keyboard 0 Movement Numpad Keybinds 0 Fullscreen 1 Font 32/SmallcapsGlow Map View 77x35 Zoom Use 0% Tactical HUD 1 Map Filters NONE Filters NONE Steam 1 RUN: 0f085483-eff2-4731-ad5b-041e5e5ce677